Cogmind - Beta 13 @@@ ROGUE MODE // 2024.07.21 @ 19:55:48 Player: opdo Result: Destroyed by D-53 Grenadier with Mini Grenade Launcher Performance ------------- Evolutions (0) 0 Regions Visited (2) 400 Robots Destroyed (8) 40 Value Destroyed (213) 213 Prototype IDs (0) 0 Alien Tech Used (0) 0 Bonus (0) 0 TOTAL SCORE: 653 Bonus ------- None Cogmind --------- Core Integrity 0/250 Matter 270/300 Energy 52/100 System Corruption 0% Temperature Cool (2) Movement Flying (32) Location -10/Mines Parts ------- > --- POWER (1) -------- (None) > --- PROPULSION (2) --- VTOL Module VTOL Module > --- UTILITY (2) ------ Small Storage Unit > --- WEAPON (2) ------- (None) > --- INVENTORY (8) ---- Ion Engine Wheel Compact Wheel VTOL Module Terrain Scan Processor Peak State ------------ > --- POWER ------------ Light Nuclear Core > --- PROPULSION ------- Aluminum Leg Carbon-fiber Leg > --- UTILITY ---------- Small Storage Unit Improved Terrain Scanner > --- WEAPON ----------- Medium Laser Small Laser > --- INVENTORY -------- Ion Engine Wheel Compact Wheel VTOL Module VTOL Module VTOL Module Terrain Scan Processor Grenade Launcher [Rating: 14] Favorites ----------- Power Ion Engine Engine Ion Engine Power Core Light Nuclear Core Propulsion Aluminum Leg Leg Aluminum Leg Flight Unit VTOL Module Utility Small Storage Unit Device Improved Terrain Scanner Storage Small Storage Unit Weapon Medium Laser Energy Gun Medium Laser Launcher Grenade Launcher Build | -11 -10 -10 ------- Run | Yrd Mat Min Slots Evolved . | . . . Power . | . . . Propulsion . | . . . Utility . | . . . Weapon . | . . . Parts Attached 16 | 7 1 8 Power 3 | 1 . 2 Engine 2 | 1 . 1 Core 1 | . . 1 Reactor . | . . . Propulsion 6 | 2 1 3 Treads . | . . . Leg 4 | 2 1 1 Wheel . | . . . Hover . | . . . Flight 2 | . . 2 Utility 2 | 2 . . Device 1 | 1 . . Storage 1 | 1 . . Processor . | . . . Hackware . | . . . Protection . | . . . Artifact . | . . . Weapon 5 | 2 . 3 Energy Gun 3 | 2 . 1 Energy Cannon . | . . . Ballistic Gun . | . . . Ballistic Cannon . | . . . Launcher 2 | . . 2 Special Weapon . | . . . Impact Weapon . | . . . Slashing Weapon . | . . . Piercing Weapon . | . . . Special Melee Weapon . | . . . Unidentified Prototypes . | . . . Parts Lost 7 | . . 7 Power 1 | . . 1 Propulsion 2 | . . 2 Utility 1 | . . 1 Weapon 3 | . . 3 Highest Loss Streak 7 | . . 7 To Critical Strikes . | . . . Average Slot Usage (%) 99 | . 100 98 Engine 12 | . 14 10 Core 1 | . . 2 Leg 27 | . 28 27 Device 13 | . 14 13 Storage 14 | . 14 14 Energy Gun 27 | . 28 26 Naked Turns . | . . . Heaviest Build 16 | 14 14 16 Greatest Support 25 | 20 20 25 Greatest Overweight (x) 4 | 4 . . Average Overweight (x) . | . . . Largest Inventory Capacity 8 | 8 8 8 Average Capacity 7 | 7 8 8 Most Carried 8 | 6 8 8 Average Carried 6 | 4 6 7 Final Capacity 8 | 8 8 8 Final Carried 8 | 6 8 5 Class Distribution -------------------- 100% | Mutant Dominant Class ---------------- Mutant | -10/Materials Mutant | -10/Mines Resources | -11 -10 -10 ----------- Run | Yrd Mat Min Matter Collected 340 | 211 59 70 Remotely . | . . . Salvage Created 278 | 54 128 96 Parts 15 | 4 7 4 Haulers Intercepted . | . . . Recyclers Shooed . | . . . Parts Field Recycled . | . . . Retrieved Matter . | . . . Parts Self-Destructed . | . . . Prevented . | . . . Kills | -11 -10 -10 ------- Run | Yrd Mat Min Combat Hostiles Destroyed 10 | . 3 7 Guns 6 | . 3 3 AOE 4 | . . 4 Classes Destroyed 4 | 1 2 1 Tunneler 2 | 2 . . Watcher 1 | . 1 . Grunt 5 | . 3 2 Assembled 5 | . . 5 Best Kill Streak 5 | 2 2 5 Combat Bots Only 5 | . 2 5 Max Kills in Single Turn 3 | 2 1 3 Gunslinging . | . . . Exploded 3 | . . 3 Melee . | . . . Uniques/NPCs Destroyed . | . . . Combat | -11 -10 -10 -------- Run | Yrd Mat Min Hostile Shots Fired 46 | . 8 38 Missed 14 | . 2 12 Damage Taken 872 | . 66 806 Core 251 | . . 251 Absorbed by Shields . | . . . Core Remaining (%) 100 | 100 . . Volleys Fired 38 | 4 12 22 Largest 2 | 2 2 2 Hottest 90 | 90 90 90 Shots Fired 71 | 8 24 39 Gun 67 | 8 24 35 Cannon . | . . . Launcher 4 | . . 4 Special . | . . . Kinetic . | . . . Thermal 67 | 8 24 35 Explosive 4 | . . 4 Electromagnetic . | . . . Robot Hit Streak 6 | 4 6 5 Robot Miss Streak 2 | 2 2 2 Penetration Max . | . . . Secondary Targets 1 | . . 1 Max Gunslinging Chain 1 | . . 1 Shots Hit Robots 43 | 5 16 22 Core Hits 24 | 2 7 15 Critical Kills . | . . . Critical Parts Destroyed . | . . . Critical Strikes 2 | 2 . . Burn 2 | 2 . . Melee Attacks . | . . . Impact . | . . . Slashing . | . . . Piercing . | . . . Sneak Attacks . | . . . Combat Hostiles . | . . . Follow-up Attacks . | . . . Damage Inflicted 751 | 69 186 496 Guns 496 | 69 186 241 Cannons . | . . . Explosions 255 | . . 255 Melee . | . . . Ramming . | . . . Kinetic . | . . . Thermal 496 | 69 186 241 Explosive 255 | . . 255 Electromagnetic . | . . . Impact . | . . . Slashing . | . . . Piercing . | . . . Highest Corruption . | . . . Average Corruption . | . . . Corruption Purged . | . . . Corruption Blocked . | . . . Overload Shots . | . . . Overflow Damage 7 | . . 7 Projectiles . | . . . Explosions 7 | . . 7 Melee . | . . . Knockbacks . | . . . Impact . | . . . Kinetic . | . . . Secondary . | . . . Self-Inflicted Damage 50 | . . 50 Shots 2 | . . 2 Rammed . | . . . Targets Rammed . | . . . Kicked . | . . . Crushed . | . . . Highest Temperature 264 | 120 144 264 Average Temperature 67 | 61 48 79 Received Heat Transfer 96 | . 36 60 Siege Activations . | . . . Robots Corrupted . | . . . Combat Hostiles . | . . . Parts Fried . | . . . Impact Corruptions . | . . . Robots Melted . | . . . Combat Hostiles . | . . . Parts Melted 2 | 1 1 . Heat Transferred 1451 | 334 484 633 Parts Sabotaged . | . . . Parts Stolen . | . . . Parts Stripped . | . . . Power Chain Reactions . | . . . Alert | -11 -10 -10 ------- Run | Yrd Mat Min Peak Influence 159 | 10 159 105 Initial 61 | . 6 61 Average 54 | 1 73 48 Maximum Alert Level . | . . . Low Security (%) 100 | 100 100 100 Level 1 . | . . . Level 2 . | . . . Level 3 . | . . . Level 4 . | . . . Level 5 . | . . . High Security . | . . . Max Security . | . . . Squads Dispatched 2 | . 2 . Investigation . | . . . Extermination . | . . . Reinforcement 2 | . 2 . Assault . | . . . Garrison . | . . . Intercept . | . . . Searches Triggered . | . . . Construction Impeded . | . . . Haulers Reinforced . | . . . Active Scanning Responses . | . . . Cargo Convoy Interrupts . | . . . Stealth | -11 -10 -10 --------- Run | Yrd Mat Min Distress Signals 1 | . 1 . Communications Jammed . | . . . Distress Signals . | . . . Times Spotted 26 | . 8 18 Peak Tracking Total 7 | . 3 7 Tactical Retreats 1 | . . 1 Traps | -11 -10 -10 ------- Run | Yrd Mat Min Traps Triggered . | . . . Indirectly . | . . . Trap Hack Attempts . | . . . Triggered . | . . . Disarmed . | . . . Reprogrammed . | . . . Reused . | . . . Traps Extracted . | . . . Installed . | . . . Triggered . | . . . Machines | -11 -10 -10 ---------- Run | Yrd Mat Min Machines Disabled . | . . . Max in Single Turn . | . . . Machines Repaired . | . . . Machines Dismantled . | . . . Machines Sabotaged . | . . . Overloaded Fab Kills . | . . . Hacking | -11 -10 -10 --------- Run | Yrd Mat Min Machines Accessed 4 | . 4 . Terminals 4 | . 4 . Fabricators . | . . . Repair Stations . | . . . Recycling Units . | . . . Scanalyzers . | . . . Garrison Access . | . . . Total Hacks 15 | . 15 . Successful 6 | . 6 . Failed 9 | . 9 . Catastrophic 3 | . 3 . Database Lockouts . | . . . Manual 9 | . 9 . Terminals 15 | . 15 . Fabricators . | . . . Repair Stations . | . . . Recycling Units . | . . . Scanalyzers . | . . . Garrison Access . | . . . Terminal Hacks 5 | . 5 . Branch Access Points 1 | . 1 . Alert Level 1 | . 1 . Investigation Status 1 | . 1 . Recall Investigation 1 | . 1 . Zone Layout 1 | . 1 . Fabricator Hacks . | . . . Repair Station Hacks . | . . . Recycling Unit Hacks . | . . . Scanalyzer . | . . . Garrison Access Hacks . | . . . Unauthorized Hacks 1 | . 1 . Terminals 1 | . 1 . Botnet 1 | . 1 . Fabricators . | . . . Repair Stations . | . . . Recycling Units . | . . . Scanalyzers . | . . . Garrison Access . | . . . Data Cores Recovered . | . . . Used . | . . . Hacking Detections 4 | . 4 . Full Trace Events . | . . . Feedback Events . | . . . Feedback Blocked . | . . . Robot Schematics Acquired . | . . . Robots Built . | . . . Authchips . | . . . Time . | . . . Total Robot Build Rating . | . . . Part Schematics Acquired . | . . . Parts Built . | . . . Authchips . | . . . Time . | . . . Total Part Build Rating . | . . . Parts Repaired . | . . . Time . | . . . Parts Recycled . | . . . Recycled Matter . | . . . Retrieved Matter . | . . . Retrieved Components . | . . . Parts Scanalyzed . | . . . Part Schematics Acquired . | . . . Parts Damaged . | . . . Bothacking | -11 -10 -10 ------------ Run | Yrd Mat Min Used RIF Installer . | . . . Robots Hacked . | . . . Non-combat . | . . . Combat . | . . . Robot Hacks Applied . | . . . Relay Couplers Released . | . . . Fabnet Peak Effective % . | . . . Robots Rewired . | . . . Allies Hacked . | . . . Hacks Repelled . | . . . Allies | -11 -10 -10 -------- Run | Yrd Mat Min Total Allies 3 | . . 3 Largest Group 3 | . . 3 Highest-Rated Group 40 | . . 40 Highest-Rated Ally 16 | . . 16 Total Orders . | . . . Ally Attacks 17 | . . 17 Total Damage 177 | . . 177 Kills 4 | . . 4 Allies Corrupted . | . . . Allies Melted . | . . . Intel | -11 -10 -10 ------- Run | Yrd Mat Min Robot Analysis Total . | . . . Derelict Logs Recovered . | . . . Drone Launches . | . . . Drone Recoveries . | . . . Exploration | -11 -10 -10 ------------- Run | Yrd Mat Min Turns Passed 848 | 79 360 409 Spaces Moved 568 | 35 248 285 Core 13 | 13 . . Treads . | . . . Legs 543 | 22 248 273 Wheels . | . . . Hover . | . . . Flight 12 | . . 12 Fastest Speed 32 | 50 120 32 Average Speed 119 | 147 120 116 Slowest Speed 250 | 250 120 120 Overloaded Moves . | . . . Propulsion Burnouts . | . . . Robots Hopped . | . . . Cave-ins Triggered . | . . . Exploration Rate (%) 41 | 3 48 74 Regions Visited 2 Branch Regions 1 Pre-discovered Areas . | . . . Known Exits Taken 1 | . 1 . Unknown Exits Taken 1 | 1 . . Scrap Searched 1 | . . 1 Spaces Dug . | . . . Terrain Destroyed 34 | . . 34 Melee . | . . . Projectile . | . . . AOE 34 | . . 34 Terrain Rammed . | . . . Walls Destroyed . | . . . Machines Disabled . | . . . Actions | -11 -10 -10 --------- Run | Yrd Mat Min Total 662 | 51 287 324 Wait 24 | . 20 4 Move 566 | 34 247 285 Hop . | . . . Pick Up 11 | 6 4 1 Fast Attach 7 | 7 . . Attach 4 | . . 4 Detach 1 | . . 1 Swap 5 | . 1 4 Drop 6 | . 3 3 Fire 38 | 4 12 22 Melee . | . . . Ram . | . . . Kick . | . . . Crush . | . . . Escape Stasis . | . . . Rewire . | . . . Trap . | . . . Miscellaneous . | . . . Route ------- -11/Scrapyard -10/Materials (discovered 2 exits: [*Mat] / *Min) -10/Mines History --------- Turn | Location | Event 19 | -11/Scrapyard | Discovered new exit (range 15) 80 | -11/Scrapyard | Entered Materials 184 | -10/Materials | Discovered new exit (range 16) 204 | -10/Materials | Identified exit to Mines 308 | -10/Materials | Build established: Mutant 440 | -10/Materials | Entered Mines 463 | -10/Mines | Assisted by bots powering up and referring to "LRC-V3" 468 | -10/Mines | Met a Derelict bent on vengeance 480 | -10/Mines | Assembled infested the area 557 | -10/Mines | Lost 4 allies 834 | -10/Mines | Core integrity fell below 50% 840 | -10/Mines | Core integrity fell below 20% 849 | -10/Mines | Destroyed by D-53 Grenadier with Mini Grenade Launcher Last Messages --------------- 00777_ "Blame H1-IDC, who apparently didn't care about the consequences of repeatedly making a mess in Materials. Shooting at robots and generally destroying stuff raised the alert level high enough to trigger assault squads over in the main complex, and they later decided the best way to defend their interests would be to start expanding in this direction." 00829_ The unstable cave ceiling collapses. 00829_ Med. Laser destroyed. 00831_ The unstable cave ceiling collapses. 00831_ Grenade Launcher destroyed. 00831_ Carbon-fiber Leg destroyed. 00833_ Imp. Terrain Scanner destroyed. 00835_ Lgt. Nuclear Core destroyed. 00841_ Aluminum Leg destroyed. 00841_ Sml. Laser destroyed. 00845_ The unstable cave ceiling collapses. 00849_ R-06 Scavenger destroyed. Map ----- +----------------------------------------------------+ | ?????????# * = #??????### #????####????? | | ????#????# # #?#??#?### #????????????? | | ????????###!=# ! #????#### ##????????????? | | ???????####[ # #???## ##?????????????? | | ??????## !# #??## ## ##???????#??????? | | ????#?# ## ##??# #### ##???????????????? | | ???#??# ## #???# #??# #???????????? ???? | | ??????## ### ##### #??# #????????????????? | | ???????### ### ##?? #????????????????? | | ?????????# ########## ##???###??????#?????????? | | ?#??##???#[ #??#????#####???????????????????????? | | #????????#%!###?????#?????#????????? ?? ????????? | | ????????## %##########? ?????????????????????? | | ????????## ## ##????????????????????? | | ???????## " # #????????????????????? | | ????#??# #???#????????????????? | | ?#?????# #????????????????????? | | ?????#?## #????#??????????????????? | | ????????### ###### ###???? ?????????????????? | | ??????????#### # ##???????????????????????? | | ?????????????# # # #????#?#????????????????? | | ?????????????# # # ##### #??????????????????? | | ???#??????#??# #??????????????????? | | ???????#?????# # # r####??????????????????? | | ?????????????# # # #=%# #????????????????#??? | | ????#???????## ## ##@%# ###??#???#?#????????? | | ???#?????????# ### ####[=[ ##????????#????????? | | ????##??#???## #?###### ! #????????#????????? | | ???#????#????# #????# ###?#?????????????? | | ?????????????# #????# ##?#???##????#???# | | ???????####### #???### #???????####???## | | ???????# #?????## d ##??????## ##### | | ???????# #######??????# ##???#???# | | ???????# #??#########?# ##?????## | | ???????# #?## #?## ##???## | | ???????#[#### ! ! #??# #??## | | ???????#% ! ! #??# #### | | ???????###### ! ! ##?# | | ???????????## !! #??# | | ????????????# #?# ## | | ????????????# #?## #### ### | | ????????????#########?## ###?## #?## | | ???????????????????????#### ##????# #?### | | ???????????????#????#???#?#####?????## #???? | | ?????????????????????????????????????#### ##???? | | ????????????????#???????????????????????#####?#?? | | ??????????#??????????????????????#??????????????? | | ???#??????????????????#???????#?????????????????? | | ?????????????#?????????#???????????????????????#? | | ????????????????????????????????????????????????# | +----------------------------------------------------+ Best States ------------- Heat Dissipation 25 Energy Generation 14 Energy Capacity 250 Matter Stores 300 Matter Capacity 300 Sight Range 16 Terrain Scan Range 16 Terrain Scan Density 10 Evasion (%) 55 Item Schematics ----------------- None Robot Schematics ------------------ None Fabricated ------------ Nothing Alien Tech Used ----------------- None Achievements -------------- None Challenges ------------ None Game ------ Seed PhaseTrackerPit Manual? 0 Play Time 00:09:21 Cumulative 51.6 hours Start 2024.07.19 @ 22:40:39 End 2024.07.21 @ 19:55:48 Sessions 4 Manual Loads 0 Difficulty Rogue Special Mode None Game No. 147 Rogue 145 Adventurer 2 Explorer 0 Win Type - Total 0 Types 0/0/0/0/0/0/0/0/0 Lore% 37 Gallery% 50 Achievement% 37 Wizard Run 0 Options --------- Layout 2 ASCII 0 Keyboard 0 Movement Arrows Keybinds 0 Fullscreen 2 Font 24/Smallcaps Map View 50x44 Zoom Use 0% Tactical HUD 1 Map Filters NONE Filters NONE Steam 1 RUN: 0be58b7a-7e42-486c-aa1a-05c837cf722d